Cogmind - Beta 15 @@@ ROGUE MODE // 2025.07.31 @ 00:42:18 Player: Cheshire Result: Destroyed by as-90282 with Assembled Blade Performance ------------- Evolutions (1) 500 Regions Visited (3) 600 Robots Destroyed (5) 25 Value Destroyed (154) 154 Prototype IDs (0) 0 Alien Tech Used (0) 0 Bonus (0) 0 TOTAL SCORE: 1279 Bonus ------- None Cogmind --------- Core Integrity 0/400 Matter 266/300 Energy 125/125 System Corruption 0% Temperature Cool (0) Movement Core (250) Ox4 Location -9/Mines Parts ------- > --- POWER (1) -------- Light Ion Engine > --- PROPULSION (4) --- (None) > --- UTILITY (2) ------ Cooling System Small Storage Unit > --- WEAPON (2) ------- EM Pulse Gun Particle Gun > --- INVENTORY (8) ---- Ion Engine Light Ion Engine ECM Suite Peak State ------------ > --- POWER ------------ Ion Engine > --- PROPULSION ------- Aluminum Leg Aluminum Leg Aluminum Leg > --- UTILITY ---------- Small Storage Unit ECM Suite > --- WEAPON ----------- Medium Laser Assault Rifle > --- INVENTORY -------- Light Ion Engine Heat Sink EM Pulse Gun Particle Gun Grenade Launcher [Rating: 8] Favorites ----------- Power Ion Engine Engine Ion Engine Propulsion Aluminum Leg Leg Aluminum Leg Utility Small Storage Unit Device Heat Sink Storage Small Storage Unit Weapon Medium Laser Energy Gun Medium Laser Ballistic Gun Assault Rifle Launcher Grenade Launcher Build | -11 -10 -9 -9 ------- Run | Yrd Mat Mat Min Slots Evolved 2 | . . 2 . Power . | . . . . Propulsion 2 | . . 2 . Utility . | . . . . Weapon . | . . . . Parts Attached 15 | 6 2 2 5 Power 3 | 1 . 1 1 Engine 3 | 1 . 1 1 Core . | . . . . Reactor . | . . . . Propulsion 3 | 2 . 1 . Treads . | . . . . Leg 3 | 2 . 1 . Wheel . | . . . . Hover . | . . . . Flight . | . . . . Utility 4 | 1 2 . 1 Device 3 | . 2 . 1 Storage 1 | 1 . . . Processor . | . . . . Hackware . | . . . . Protection . | . . . . Artifact . | . . . . Weapon 5 | 2 . . 3 Energy Gun 3 | 1 . . 2 Energy Cannon . | . . . . Ballistic Gun 1 | 1 . . . Ballistic Cannon . | . . . . Launcher 1 | . . . 1 Special Weapon . | . . . . Impact Weapon . | . . . . Slashing Weapon . | . . . . Piercing Weapon . | . . . . Special Melee Weapon . | . . . . Unidentified Prototypes . | . . . . Parts Lost 8 | . . . 8 Power 1 | . . . 1 Propulsion 3 | . . . 3 Utility 1 | . . . 1 Weapon 3 | . . . 3 Highest Loss Streak 8 | . . . 8 To Critical Strikes . | . . . . Average Backups 4 | 2 4 5 4 Power 1 | . 1 1 1 Propulsion . | . . . . Utility . | . . 1 1 Weapon 2 | 1 2 3 1 Tool/Special . | . . . . Unused Backups 1 | . . . 1 Power 1 | . . . 1 Propulsion . | . . . . Utility . | . . . . Weapon . | . . . . Tool/Special . | . . . . Average Slot Usage (%) 85 | . 96 88 60 Engine 12 | . 14 11 10 Leg 25 | . 28 33 11 Device 10 | . 10 11 9 Storage 12 | . 14 11 11 Energy Gun 13 | . 14 11 13 Ballistic Gun 10 | . 14 11 3 Peak Build Rating 8 | 6 7 8 8 Average Rating 6 | 3 6 8 6 On Entrance 5 | . 6 7 8 Naked Turns . | . . . . Heaviest Build 17 | 14 16 16 17 Greatest Support 30 | 20 20 30 30 Greatest Overweight (x) 5 | 1 . . 5 Average Overweight (x) . | . . . 1 Largest Inventory Capacity 8 | 8 8 8 8 Average Capacity 7 | 7 8 8 8 Most Carried 7 | 7 6 6 7 Average Carried 4 | 2 4 5 4 Final Capacity 8 | 8 8 8 8 Final Carried 6 | 2 6 6 3 Class Distribution -------------------- 100% | Mutant Dominant Class ---------------- Mutant | -10/Materials Mutant | -9/Materials Mutant | -9/Mines Resources | -11 -10 -9 -9 ----------- Run | Yrd Mat Mat Min Matter Collected 392 | 233 63 19 77 Remotely . | . . . . Salvage Created 179 | . 92 35 52 Parts 5 | . 3 2 . Haulers Intercepted . | . . . . Recyclers Shooed . | . . . . Parts Field Recycled . | . . . . Retrieved Matter . | . . . . Parts Self-Destructed . | . . . . Prevented . | . . . . Kills | -11 -10 -9 -9 ------- Run | Yrd Mat Mat Min Combat Hostiles Destroyed 6 | . 2 2 2 Guns 5 | . 2 2 1 AOE 1 | . . . 1 Classes Destroyed 4 | . 1 1 2 Swarmer 2 | . . 2 . Grunt 2 | . 2 . . Demolisher 1 | . . . 1 Assembled 1 | . . . 1 Best Kill Streak 2 | . 1 2 1 Combat Bots Only 2 | . 1 2 1 Max Kills in Single Turn 1 | . 1 1 1 Gunslinging . | . . . . Exploded 1 | . . . 1 Melee . | . . . . Uniques/NPCs Destroyed . | . . . . Combat | -11 -10 -9 -9 -------- Run | Yrd Mat Mat Min Hostile Shots Fired 75 | . 20 25 30 Missed 21 | . 6 10 5 Hits 54 | . 14 15 25 Melee 2 | . . . 2 Projectile 52 | . 14 15 23 AOE 18 | . . . 18 Critical Strikes 1 | . . . 1 Part Disruptions 2 | . . . 2 Damage Taken 1223 | . 219 134 870 Core 506 | . 93 25 388 Absorbed by Shields . | . . . . Core Remaining (%) 81 | 100 62 . . Volleys Fired 31 | . 12 5 14 Largest 2 | . 2 2 2 Hottest 105 | . 70 70 105 Shots Fired 51 | . 24 10 17 Gun 49 | . 24 10 15 Cannon . | . . . . Launcher 2 | . . . 2 Special . | . . . . Kinetic 18 | . 12 5 1 Thermal 27 | . 12 5 10 Explosive 2 | . . . 2 Electromagnetic 4 | . . . 4 Robot Hit Streak 10 | . 10 4 10 Robot Miss Streak 2 | . 2 1 2 Penetration Max . | . . . . Secondary Targets 1 | . 1 . . Max Gunslinging Chain 1 | . 1 . . Shots Hit Robots 36 | . 17 6 13 Core Hits 19 | . 5 3 11 Critical Kills . | . . . . Critical Parts Destroyed . | . . . . Critical Strikes 1 | . . . 1 Burn 1 | . . . 1 Melee Attacks . | . . . . Impact . | . . . . Slashing . | . . . . Piercing . | . . . . Sneak Attacks . | . . . . Combat Hostiles . | . . . . Follow-up Attacks . | . . . . Damage Inflicted 544 | . 219 77 248 Guns 438 | . 219 77 142 Cannons . | . . . . Explosions 106 | . . . 106 Melee . | . . . . Ramming . | . . . . Kinetic 146 | . 95 40 11 Thermal 341 | . 124 37 180 Explosive 26 | . . . 26 Electromagnetic 31 | . . . 31 Impact . | . . . . Slashing . | . . . . Piercing . | . . . . Highest Corruption . | . . . . Average Corruption . | . . . . Corruption Purged . | . . . . Corruption Blocked . | . . . . Overload Shots . | . . . . Overflow Damage . | . . . . Projectiles . | . . . . Explosions . | . . . . Melee . | . . . . Knockbacks . | . . . . Impact . | . . . . Kinetic . | . . . . Secondary . | . . . . Self-Inflicted Damage 32 | . . . 32 Shots 2 | . . . 2 Rammed . | . . . . Targets Rammed . | . . . . Kicked . | . . . . Crushed . | . . . . Highest Temperature 153 | . 153 . 7 Average Temperature 62 | . 67 . 5 Received Heat Transfer 249 | . 120 9 120 Siege Activations . | . . . . Martial Activations . | . . . . Shielding Activations . | . . . . Robots Disrupted . | . . . . Combat Hostiles . | . . . . Robots Corrupted . | . . . . Combat Hostiles . | . . . . Parts Fried . | . . . . Impact Corruptions . | . . . . Robots Melted . | . . . . Combat Hostiles . | . . . . Parts Melted 1 | . 1 . . Heat Transferred 914 | . 370 111 433 Parts Sabotaged . | . . . . Parts Stolen . | . . . . Parts Stripped . | . . . . Power Chain Reactions 1 | . . . 1 Alert | -11 -10 -9 -9 ------- Run | Yrd Mat Mat Min Maximum Alert Level . | . . . . Low Security (%) 100 | 100 100 100 100 Level 1 . | . . . . Level 2 . | . . . . Level 3 . | . . . . Level 4 . | . . . . Level 5 . | . . . . High Security . | . . . . Max Security . | . . . . Peak Influence 40 | . 40 40 20 Initial . | . . . . Average 5 | . 5 11 1 Influence Increases 168 | . 85 55 28 Destroy 0b10 Robot/C 100 | . 40 40 20 Destroy Leader 10 | . 10 . . Successful Hack 5 | . 5 . . Destroy Structure 8 | . . . 8 Lose Combat Pursuer 45 | . 30 15 . Influence Decreases 168 | . 85 55 28 Time Decay 160 | . 85 55 20 Lost Part 8 | . . . 8 Squads Dispatched 1 | . . 1 . Investigation . | . . . . Extermination . | . . . . Reinforcement 1 | . . 1 . Assault . | . . . . Garrison . | . . . . Intercept . | . . . . Searches Triggered . | . . . . Construction Impeded . | . . . . Haulers Reinforced . | . . . . Active Scanning Responses . | . . . . Cargo Convoy Interrupts . | . . . . Stealth | -11 -10 -9 -9 --------- Run | Yrd Mat Mat Min Distress Signals 3 | . 2 1 . Communications Jammed . | . . . . Distress Signals . | . . . . Times Spotted 24 | . 5 13 6 Peak Tracking Total 6 | . 2 6 3 Tactical Retreats 4 | . 2 2 . Traps | -11 -10 -9 -9 ------- Run | Yrd Mat Mat Min Traps Triggered . | . . . . Indirectly . | . . . . Trap Hack Attempts . | . . . . Triggered . | . . . . Disarmed . | . . . . Reprogrammed . | . . . . Reused . | . . . . Traps Extracted . | . . . . Installed . | . . . . Triggered . | . . . . Machines | -11 -10 -9 -9 ---------- Run | Yrd Mat Mat Min Machines Disabled . | . . . . Max in Single Turn . | . . . . Machines Repaired . | . . . . Machines Dismantled . | . . . . Machines Sabotaged . | . . . . Overloaded Fab Kills . | . . . . Hacking | -11 -10 -9 -9 --------- Run | Yrd Mat Mat Min Machines Accessed 1 | . 1 . . Terminals 1 | . 1 . . Fabricators . | . . . . Repair Stations . | . . . . Recycling Units . | . . . . Scanalyzers . | . . . . Garrison Access . | . . . . Total Hacks 2 | . 2 . . Successful 2 | . 2 . . Failed . | . . . . Catastrophic . | . . . . Database Lockouts . | . . . . Manual . | . . . . Terminals 2 | . 2 . . Fabricators . | . . . . Repair Stations . | . . . . Recycling Units . | . . . . Scanalyzers . | . . . . Garrison Access . | . . . . Terminal Hacks 2 | . 2 . . Alert Level 1 | . 1 . . Zone Layout 1 | . 1 . . Fabricator Hacks . | . . . . Repair Station Hacks . | . . . . Recycling Unit Hacks . | . . . . Scanalyzer . | . . . . Garrison Access Hacks . | . . . . Unauthorized Hacks . | . . . . Terminals . | . . . . Fabricators . | . . . . Repair Stations . | . . . . Recycling Units . | . . . . Scanalyzers . | . . . . Garrison Access . | . . . . Data Cores Recovered . | . . . . Used . | . . . . Hacking Detections 1 | . 1 . . Full Trace Events . | . . . . Feedback Events . | . . . . Feedback Blocked . | . . . . Robot Schematics Acquired . | . . . . Robots Built . | . . . . Authchips . | . . . . Time . | . . . . Total Robot Build Rating . | . . . . Part Schematics Acquired . | . . . . Parts Built . | . . . . Authchips . | . . . . Time . | . . . . Total Part Build Rating . | . . . . Parts Repaired . | . . . . Time . | . . . . Parts Recycled . | . . . . Recycled Matter . | . . . . Retrieved Matter . | . . . . Retrieved Components . | . . . . Parts Scanalyzed . | . . . . Part Schematics Acquired . | . . . . Parts Damaged . | . . . . Bothacking | -11 -10 -9 -9 ------------ Run | Yrd Mat Mat Min Used RIF Installer . | . . . . Robots Hacked . | . . . . Non-combat . | . . . . Combat . | . . . . Robot Hacks Applied . | . . . . Relay Couplers Released . | . . . . Fabnet Peak Effective % . | . . . . Robots Rewired . | . . . . Allies Hacked . | . . . . Hacks Repelled . | . . . . Allies | -11 -10 -9 -9 -------- Run | Yrd Mat Mat Min Total Allies . | . . . . Largest Group . | . . . . Highest-Rated Group . | . . . . Highest-Rated Ally . | . . . . Total Orders . | . . . . Ally Attacks . | . . . . Total Damage . | . . . . Kills . | . . . . Allies Corrupted . | . . . . Allies Melted . | . . . . Intel | -11 -10 -9 -9 ------- Run | Yrd Mat Mat Min Active Infowar (turns) 288 | . 180 108 . ECM 288 | . 180 108 . Robot Analysis Total . | . . . . Derelict Logs Recovered 1 | . . . 1 Drone Launches . | . . . . Drone Recoveries . | . . . . Exploration | -11 -10 -9 -9 ------------- Run | Yrd Mat Mat Min Turns Passed 894 | 49 423 220 202 Spaces Moved 338 | 33 130 87 88 Core 52 | 14 . . 38 Treads . | . . . . Legs 286 | 19 130 87 50 Wheels . | . . . . Hover . | . . . . Flight . | . . . . Fastest Speed 50 | 50 120 120 120 Average Speed 134 | 108 120 120 180 Slowest Speed 300 | 120 120 120 300 Overloaded Moves . | . . . . Propulsion Burnouts . | . . . . Robots Hopped . | . . . . Potential Cave-ins . | . . . . Cave-ins Triggered . | . . . . Exploration Rate (%) 17 | 3 23 13 30 Regions Visited 3 Branch Regions 1 Pre-discovered Areas . | . . . . Known Exits Taken . | . . . . Unknown Exits Taken 3 | 1 1 1 . Scrap Searched 1 | . . . 1 Spaces Dug . | . . . . Terrain Destroyed 10 | . . . 10 Melee . | . . . . Projectile . | . . . . AOE 10 | . . . 10 Terrain Rammed . | . . . . Walls Destroyed . | . . . . Machines Disabled . | . . . . Actions | -11 -10 -9 -9 --------- Run | Yrd Mat Mat Min Total 724 | 46 372 191 115 Wait 325 | . 224 96 5 Move 335 | 32 129 86 88 Hop . | . . . . Pick Up 16 | 8 5 1 2 Fast Attach . | . . . . Attach 13 | 6 1 1 5 Detach . | . . . . Swap 4 | . 1 2 1 Drop . | . . . . Fire 31 | . 12 5 14 Melee . | . . . . Ram . | . . . . Kick . | . . . . Crush . | . . . . Escape Stasis . | . . . . Rewire . | . . . . Trap . | . . . . Miscellaneous . | . . . . Route ------- -11/Scrapyard -10/Materials -9/Materials -9/Mines (discovered 2 exits: *Mat x2) History --------- Turn | Location | Event 9 | -11/Scrapyard | Discovered new exit (range 16) 50 | -11/Scrapyard | Entered Materials 286 | -10/Materials | Discovered new exit (range 10) 314 | -10/Materials | Build established: Mutant 473 | -10/Materials | Entered another Materials area 473 | -9/Materials | Evolved 2 slots: Propulsion x2 676 | -9/Materials | Discovered new exit (range 14) 693 | -9/Materials | Entered Mines 695 | -9/Mines | Discovered new exit (range 13) 715 | -9/Mines | Identified exit to Materials 745 | -9/Mines | Assembled infested the area 761 | -9/Mines | Core integrity fell below 50% 769 | -9/Mines | Core integrity fell below 20% 796 | -9/Mines | Lost 8 parts (1p3n1u3w) 895 | -9/Mines | Destroyed by as-90282 with Assembled Blade Last Messages --------------- U-05 Engineer builds a Wall. The unstable cave ceiling collapses. U-05 Engineer builds a Wall. as-77449 suffers critical hit (Burn). as-77449 heat spikes uncontrollably. Destroyed Asb. Hover Unit. as-77449 heat spikes uncontrollably. as-77449 destroyed. Acquired 13 matter. Acquired 18 matter. Acquired Lgt. Ion Engine. as-12622 sneak attacks. U-05 Engineer system corrupted by crushing effect. U-05 Engineer knocked back. U-05 Engineer system terminally corrupted. as-12622 sneak attacks. R-06 Scavenger system corrupted by crushing effect. R-06 Scavenger system terminally corrupted. Map ----- +----------------------------------------------------+ | ????????????????????????????????????????????????? | | ??????????????